bitfinex/quotes_SOLUSD_20241101
["timestamp","ask_amount","ask_price","bid_price","bid_amount"]
[1730489766680,6.0096,166.4,166.35,14.90399389]
[1730489768270,6.0093,166.41,166.37,8.89279389]
[1730489768468,6.0093,166.41,166.36,8.89279389]
[1730489768670,15.51964519,166.42,166.37,6.0106]
[1730489768864,15.51964519,166.42,166.37,21.0373]
[1730489769065,6.6268513,166.42,166.37,29.93009389]
[1730489769878,6.6268513,166.42,166.41,8.89279389]
[1730489769879,0.6177513,166.42,166.41,8.89279389]
[1730489770261,3.13535085,166.58,166.43,0.12549]
[1730489770462,0.6177513,166.59,166.46,0.12549]
[1730489770463,6.6204513,166.59,166.46,0.12549]
[1730489770658,0.6177513,166.59,166.47,20.45565387]
[1730489770980,0.6177513,166.59,166.58,8.89279389]
[1730489772675,0.6177513,166.59,166.58,13.84935071]
[1730489772887,0.6177513,166.59,166.58,33.84935071]
[1730489773377,292.6,166.72,166.58,33.84935071]
[1730489773378,13.84935071,166.71,166.59,41.0096]
[1730489773584,13.84935071,166.71,166.66,13.84935071]
[1730489773759,13.84935071,166.7,166.64,13.84935071]
[1730489773959,13.84935071,166.7,166.65,13.84935071]
[1730489774571,5.9991,166.69,166.65,13.84935071]
[1730489775168,23.776884,166.68,166.66,13.84935071]
[1730489775369,5.9991,166.69,166.65,13.84935071]
[1730489775683,25.8417,166.73,166.62,13.84935071]
[1730489775684,13.84935071,166.67,166.62,13.84935071]
[1730489775858,13.84935071,166.67,166.61,13.84935071]
[1730489776065,13.84935071,166.66,166.61,13.84935071]
[1730489776292,13.84935071,166.63,166.57,13.84935071]
[1730489776578,13.84935071,166.61,166.56,15.0095]
[1730489776887,13.84935071,166.59,166.53,13.84935071]
[1730489777180,22.8988,166.63,166.52,21.0178]
[1730489777181,13.84935071,166.63,166.52,51.0442]
[1730489777358,13.84935071,166.64,166.58,13.84935071]
[1730489777558,292.6,166.72,166.58,0.12549]
[1730489777780,13.84935071,166.7,166.64,13.84935071]
[1730489778562,13.84935071,166.69,166.64,13.84935071]
[1730489778780,5.9993,166.69,166.64,13.84935071]
[1730489778983,19.84865071,166.69,166.64,13.84935071]
[1730489779493,23.776884,166.68,166.63,13.84935071]
[1730489779666,13.84935071,166.64,166.58,13.84935071]
[1730489779986,23.776884,166.68,166.59,13.84935071]
[1730489779987,13.84935071,166.65,166.59,13.84935071]
[1730489780163,23.776884,166.64,166.6,13.84935071]
[1730489780487,23.776884,166.64,166.59,13.84935071]
[1730489780784,29.777784,166.64,166.6,13.84935071]
[1730489780969,29.777784,166.64,166.59,13.84935071]
[1730489781166,13.84935071,166.67,166.61,13.84935071]
[1730489781378,23.776884,166.66,166.62,13.84935071]
[1730489781565,23.776884,166.66,166.61,13.84935071]
[1730489782787,19.84915071,166.67,166.61,13.84935071]
[1730489782963,13.84935071,166.66,166.61,13.84935071]
[1730489783570,19.84915071,166.67,166.61,19.85125071]
[1730489783776,13.84935071,166.66,166.61,19.85125071]
[1730489784501,19.84915071,166.67,166.61,19.85125071]
[1730489784788,13.84935071,166.66,166.61,19.85125071]
[1730489784958,19.84975071,166.66,166.61,19.85125071]
[1730489785801,6.0004,166.66,166.59,13.84935071]
[1730489785982,13.84935071,166.63,166.58,28.85715071]
[1730489786286,13.84935071,166.64,166.58,28.85715071]
[1730489786471,37.62623471,166.65,166.59,13.84935071]
[1730489787080,19.84995071,166.65,166.6,13.84935071]
[1730489787579,22.134,166.68,166.62,13.84935071]
[1730489787580,35.98335071,166.68,166.62,13.84935071]
[1730489787781,13.84935071,166.67,166.61,13.84935071]
[1730489787980,13.84935071,166.66,166.61,13.84935071]
[1730489788292,13.84935071,166.66,166.6,13.84935071]
[1730489788584,13.84935071,166.66,166.61,13.84935071]
[1730489789382,19.84965071,166.66,166.6,19.85135071]
[1730489789570,19.84965071,166.66,166.61,13.84935071]
[1730489789774,13.84935071,166.65,166.6,6.002]
[1730489790089,13.84935071,166.65,166.6,19.85135071]
[1730489790484,13.84935071,166.65,166.59,28.85625071]
[1730489790667,13.84935071,166.65,166.55,6.5578]
[1730489790668,13.84935071,166.64,166.58,13.84935071]
[1730489790871,13.84935071,166.64,166.59,13.84935071]
[1730489791072,37.62623471,166.65,166.59,13.84935071]
[1730489791267,37.62623471,166.65,166.6,13.84935071]
[1730489791570,6.0009,166.64,166.59,13.84935071]
[1730489792591,19.85025071,166.64,166.59,13.84935071]
[1730489792894,13.84935071,166.62,166.57,28.85805071]
[1730489793969,13.84935071,166.63,166.58,13.84935071]
[1730489794170,19.85025071,166.64,166.58,13.84935071]
[1730489794394,6.0009,166.64,166.59,13.84935071]
[1730489795586,19.85025071,166.64,166.59,13.84935071]
[1730489796895,23.776884,166.63,166.59,13.84935071]
[1730489797393,23.776884,166.63,166.58,13.84935071]
[1730489798388,6.0016,166.62,166.58,13.84935071]
[1730489799082,6.0016,166.62,166.57,13.84935071]
[1730489799879,6.0016,166.62,166.58,13.84935071]
[1730489800081,5.9998,166.67,166.61,13.84935071]
[1730489800380,5.9998,166.67,166.63,13.84935071]
[1730489800683,19.84915071,166.67,166.61,13.84935071]
[1730489801089,13.84935071,166.66,166.61,13.84935071]
[1730489801393,13.84935071,166.65,166.6,13.84935071]
[1730489802484,13.84935071,166.65,166.59,13.84935071]
[1730489802877,13.84935071,166.65,166.6,13.84935071]
[1730489803592,6.0009,166.64,166.59,13.84935071]
[1730489803815,15.9907,166.73,166.63,13.84935071]
[1730489803982,6.6147513,166.75,166.7,13.84935071]
[1730489804497,13.84935071,166.74,166.59,0.12549]
[1730489804678,13.84935071,166.74,166.59,1.62752701]
[1730489804882,6.6147513,166.75,166.7,13.84935071]
[1730489805296,6.6147513,166.75,166.71,13.84935071]
[1730489805504,6.6147513,166.75,166.7,13.84935071]
[1730489805807,20.46410201,166.75,166.69,13.84935071]
[1730489806005,20.46410201,166.75,166.68,13.84935071]
[1730489806006,13.84935071,166.74,166.68,13.84935071]
[1730489806699,23.776884,166.73,166.68,13.84935071]
[1730489807294,23.776884,166.73,166.69,13.84935071]
[1730489807990,23.776884,166.73,166.66,15.0006]
[1730489807991,23.776884,166.71,166.67,13.84935071]
[1730489808298,23.776884,166.71,166.66,13.84935071]
[1730489808299,37.62623471,166.71,166.66,13.84935071]
[1730489808895,13.84935071,166.7,166.65,13.84935071]
[1730489809078,13.84935071,166.7,166.64,13.84935071]
[1730489809279,37.62623471,166.71,166.65,13.84935071]
[1730489810195,5.9988,166.7,166.65,13.84935071]
[1730489811101,5.9988,166.7,166.66,13.84935071]
[1730489811284,5.998,166.72,166.67,13.84935071]
[1730489811687,19.84735071,166.72,166.67,13.84935071]
[1730489814003,19.84735071,166.72,166.66,13.84935071]
[1730489814194,19.84735071,166.72,166.67,1.50188167]
[1730489814405,13.84935071,166.7,166.68,1.50188167]
[1730489814586,13.84935071,166.7,166.65,13.84935071]
[1730489814909,37.62623471,166.71,166.66,1.50195806]
[1730489815207,37.62623471,166.71,166.67,1.50195806]
[1730489815411,5.9988,166.7,166.65,13.84935071]
[1730489815593,5.9988,166.7,166.66,1.50195806]
[1730489816117,5.9988,166.7,166.67,1.50195806]
[1730489816413,5.9988,166.7,166.68,1.50195806]
[1730489816582,5.9988,166.7,166.69,1.50195806]
[1730489817006,43.62503471,166.7,166.69,1.50195806]
[1730489821902,23.776884,166.69,166.64,13.84935071]
[1730489822111,37.62623471,166.69,166.64,13.84935071]
[1730489822492,37.62623471,166.69,166.65,1.50196487]
[1730489822710,37.62623471,166.69,166.66,1.50196487]
[1730489823014,37.62623471,166.69,166.67,1.50196487]
[1730489823193,37.62623471,166.69,166.68,1.50196487]
[1730489824400,58.62323471,166.69,166.6,33.84935071]
[1730489824703,13.84935071,166.65,166.61,1.50211378]
[1730489824898,13.84935071,166.65,166.62,1.50211378]
[1730489825109,13.84935071,166.65,166.63,1.50211378]
[1730489825305,13.84935071,166.65,166.64,1.50211378]
[1730489826019,13.84935071,166.65,166.64,1.50216973]
[1730489826201,13.84935071,166.65,166.6,19.85165071]
[1730489826526,19.84995071,166.65,166.61,1.5021772]
[1730489826813,19.84995071,166.65,166.62,1.5021772]
[1730489827314,19.84995071,166.65,166.61,1.50227438]
[1730489827315,13.84935071,166.63,166.61,1.50227438]
[1730489827619,13.84935071,166.62,166.6,1.50227438]
[1730489827818,13.84935071,166.61,166.56,26.11578598]
[1730489828003,13.84935071,166.6,166.57,1.50235758]
[1730489828331,13.84935071,166.59,166.58,1.50235758]
[1730489828501,6.0027,166.59,166.58,1.50235758]
[1730489828699,43.62893471,166.59,166.58,1.50235758]
[1730489828899,43.62893471,166.59,166.57,1.50235758]
[1730489829107,43.62893471,166.59,166.54,1.50235758]
[1730489829419,13.84935071,166.58,166.55,1.50235758]
[1730489829642,13.84935071,166.58,166.56,1.50235758]
[1730489829918,13.84935071,166.58,166.54,1.50267997]
[1730489830115,13.84935071,166.58,166.55,1.50267997]
[1730489830308,13.84935071,166.58,166.56,1.50267997]
[1730489830496,13.84935071,166.57,166.54,1.50267997]
[1730489830693,13.84935071,166.57,166.55,1.50267997]
[1730489831012,6.0031,166.58,166.53,1.50267997]
[1730489831013,13.84935071,166.56,166.53,1.50267997]
[1730489831320,13.84935071,166.54,166.51,1.50267997]
[1730489831513,13.84935071,166.54,166.52,1.50267997]
[1730489831819,13.84935071,166.54,166.5,1.50267997]
[1730489831996,13.84935071,166.54,166.51,1.50267997]
[1730489832200,13.84935071,166.54,166.5,1.50267997]
[1730489832400,13.84935071,166.53,166.5,1.50267997]
[1730489832803,13.84935071,166.6,166.52,13.84935071]
[1730489833000,29.06575071,166.61,166.55,13.84935071]
[1730489833394,13.84935071,166.59,166.54,13.84935071]
[1730489833594,13.84935071,166.6,166.54,13.84935071]
[1730489833796,13.84935071,166.6,166.54,15.35203068]
[1730489834020,19.85195071,166.6,166.54,13.84935071]
[1730489834208,23.776884,166.59,166.54,15.35203068]
[1730489834425,23.776884,166.59,166.54,13.84935071]
[1730489834909,23.776884,166.59,166.54,15.35210683]
[1730489835116,23.776884,166.59,166.55,13.84935071]
[1730489835424,37.62623471,166.59,166.54,13.84935071]
[1730489835922,13.84935071,166.58,166.53,1.50274823]
[1730489836124,6.0034,166.57,166.52,28.86175071]
[1730489836306,23.776884,166.59,166.55,13.84935071]
[1730489837309,29.779684,166.59,166.54,13.84935071]
[1730489837519,35.06805071,166.61,166.55,13.84935071]
[1730489838319,35.06805071,166.61,166.56,13.84935071]
[1730489838511,19.85165071,166.61,166.56,13.84935071]
[1730489839017,19.85165071,166.61,166.55,19.85315071]
[1730489839218,13.84935071,166.58,166.53,13.84935071]
[1730489839722,23.776884,166.6,166.55,13.84935071]
[1730489839723,37.62623471,166.6,166.55,13.84935071]
[1730489840112,13.84935071,166.59,166.54,13.84935071]
[1730489840607,13.84935071,166.57,166.52,28.86245071]
[1730489840815,37.62623471,166.58,166.52,28.86245071]
[1730489841009,37.62623471,166.58,166.53,13.84935071]
[1730489841218,23.776884,166.58,166.53,13.84935071]
[1730489841422,6.0027,166.59,166.55,13.84935071]
[1730489841820,6.0027,166.59,166.54,19.85385071]
[1730489844831,6.0027,166.59,166.55,13.84935071]
[1730489846420,6.0027,166.59,166.54,13.84935071]
[1730489846621,6.0034,166.57,166.52,28.86245071]
[1730489847033,6.0034,166.57,166.53,13.84935071]
[1730489851421,6.0034,166.57,166.52,28.86245071]
[1730489851626,6.0034,166.57,166.53,13.84935071]
[1730489852723,6.0034,166.57,166.52,28.86245071]
[1730489852924,23.776884,166.56,166.51,20.10179336]
[1730489853933,19.85355071,166.55,166.51,6.25244265]
[1730489854116,37.62623471,166.54,166.49,13.84935071]
[1730489855124,23.776884,166.54,166.49,13.84935071]
[1730489855542,23.776884,166.54,166.5,13.84935071]
[1730489855835,6.0042,166.55,166.5,13.84935071]
[1730489856714,6.0042,166.55,166.51,13.84935071]
[1730489857442,6.0042,166.55,166.5,13.84935071]
[1730489857629,13.84935071,166.55,166.5,13.84935071]
[1730489858029,13.84935071,166.56,166.51,13.84935071]
[1730489860149,23.776884,166.56,166.52,13.84935071]
[1730489860449,19.84955071,166.66,166.55,27.69870142]
[1730489860744,6.0002,166.66,166.61,13.84935071]
[1730489860949,19.84955071,166.66,166.6,13.84935071]
[1730489861145,13.84935071,166.65,166.6,13.84935071]
[1730489861653,19.84995071,166.65,166.6,13.84935071]
[1730489862152,15.4016,166.67,166.62,13.84935071]
[1730489862340,29.25095071,166.67,166.61,13.84935071]
[1730489864147,35.25075071,166.67,166.61,19.85125071]
[1730489865048,13.84935071,166.66,166.6,13.84935071]
[1730489865246,35.25075071,166.67,166.61,13.84935071]
[1730489865626,35.25075071,166.67,166.62,13.84935071]
[1730489866552,21.4014,166.67,166.62,13.84935071]
[1730489867552,21.4014,166.67,166.62,19.85095071]
[1730489868030,35.25075071,166.67,166.62,19.85095071]
[1730489869541,23.776884,166.66,166.61,15.0051]
[1730489869850,23.776884,166.66,166.61,34.85645071]
[1730489870945,29.777084,166.66,166.63,13.84935071]
[1730489871148,15.4016,166.67,166.63,13.84935071]
[1730489871451,5.9988,166.7,166.65,13.84935071]
[1730489872247,5.9988,166.7,166.61,15.7682]
[1730489872447,13.84935071,166.69,166.64,6.0008]
[1730489872649,14.85950537,166.7,166.64,14.86150537]
[1730489872836,23.776884,166.69,166.65,8.86070537]
[1730489873160,32.63758937,166.7,166.65,8.86070537]
[1730489873567,23.83060231,166.72,166.69,8.86070537]
[1730489873740,23.83060231,166.72,166.71,8.86070537]
[1730489874058,0.6177513,166.75,166.71,8.86070537]
[1730489874738,0.6177513,166.75,166.66,51.002]
[1730489874739,6.6147513,166.75,166.7,13.83322723]
[1730489875448,23.776884,166.74,166.69,13.83322723]
[1730489875653,13.83322723,166.72,166.66,34.83402723]
[1730489875958,6.6147513,166.75,166.67,13.83322723]
[1730489875959,23.776884,166.71,166.67,13.83322723]
[1730489876151,23.776884,166.72,166.67,13.83322723]
[1730489876655,43.60841123,166.72,166.66,13.83322723]
[1730489878356,20.44797853,166.75,166.69,13.83322723]
[1730489878550,20.44797853,166.75,166.7,13.83322723]
[1730489878733,20.44797853,166.75,166.69,13.83322723]
[1730489879875,23.776884,166.74,166.69,13.83322723]
[1730489881259,37.61011123,166.74,166.69,13.83322723]
[1730489881636,23.776884,166.74,166.69,13.83322723]
[1730489882457,23.776884,166.74,166.7,13.83322723]
[1730489883460,29.774184,166.74,166.69,13.83322723]
[1730489884163,43.60741123,166.74,166.69,13.83322723]
[1730489884377,29.774184,166.74,166.71,13.83322723]
[1730489884545,29.774184,166.74,166.69,13.83322723]
[1730489884746,13.83322723,166.72,166.67,13.83322723]
[1730489884952,13.83322723,166.72,166.66,19.83342723]
[1730489885155,23.776884,166.71,166.66,13.83322723]
[1730489885657,23.776884,166.71,166.67,13.83322723]
[1730489885864,23.776884,166.71,166.66,13.83322723]
[1730489886068,55.41012921,166.74,166.69,13.83322723]
[1730489886246,23.776884,166.73,166.69,13.83322723]
[1730489886449,29.774784,166.73,166.68,19.83262723]
[1730489886860,29.774784,166.73,166.69,13.83322723]
[1730489887366,29.774784,166.73,166.7,13.83322723]
[1730489887547,29.774784,166.73,166.68,34.83142723]
[1730489888354,29.774784,166.73,166.69,13.83322723]
[1730489888559,29.774784,166.73,166.68,13.83322723]
[1730489889070,29.774784,166.73,166.69,13.83322723]
[1730489889371,43.60801123,166.73,166.67,13.83322723]
[1730489889548,13.83322723,166.72,166.66,34.83402723]
[1730489890365,23.776884,166.71,166.66,34.83402723]
[1730489890902,13.83322723,166.73,166.68,13.83322723]
[1730489891054,5.9981,166.72,166.68,13.83322723]
[1730489891557,5.9981,166.72,166.67,13.83322723]
[1730489891759,5.9981,166.72,166.68,13.83322723]
[1730489892444,20.58620198,166.74,166.69,13.83322723]
[1730489892969,20.58620198,166.74,166.73,13.83322723]
[1730489893269,0.6177513,166.75,166.73,13.83322723]
[1730489893465,0.6177513,166.75,166.74,13.83322723]
[1730489894573,0.6177513,166.75,166.74,19.83052723]
[1730489895075,0.6177513,166.75,166.74,39.83052723]
[1730489899382,0.6177513,166.75,166.74,33.83322723]
[1730489899556,0.6177513,166.75,166.74,13.83322723]
[1730489901273,0.6177513,166.75,166.74,19.83052723]
[1730489903785,0.6177513,166.75,166.74,13.83322723]
[1730489906478,20.44797853,166.75,166.69,20.0847537]
[1730489906655,13.83322723,166.74,166.7,1.5011088]
[1730489906857,13.83322723,166.74,166.69,7.75271834]
[1730489907081,13.83322723,166.74,166.69,21.58594557]
[1730489907376,13.83322723,166.74,166.69,20.0847537]
[1730489907764,20.44797853,166.75,166.69,20.0847537]
[1730489908077,20.44797853,166.75,166.7,13.83322723]
[1730489908483,6.6147513,166.75,166.7,13.83322723]
[1730489908669,20.44797853,166.75,166.7,13.83322723]
[1730489908857,6.6147513,166.75,166.7,13.83322723]
[1730489909572,20.44797853,166.75,166.7,13.83322723]
[1730489910173,37.61011123,166.74,166.69,6.25152647]
[1730489910352,37.61011123,166.74,166.69,7.75285183]
[1730489910559,13.83322723,166.73,166.69,6.25152647]
[1730489910764,13.83322723,166.73,166.69,7.75285493]
[1730489911062,13.83322723,166.73,166.69,6.25152647]
[1730489911667,5.998,166.72,166.69,1.50132883]
[1730489911883,5.998,166.72,166.68,1.50132883]
[1730489912172,37.61011123,166.71,166.68,1.50132883]
[1730489912373,37.61011123,166.71,166.67,1.50132883]
[1730489913289,23.776884,166.71,166.67,15.33455606]
[1730489914288,29.774884,166.72,166.67,15.33455606]
[1730489914782,43.60811123,166.72,166.67,15.33455606]
[1730489915076,43.60811123,166.72,166.67,1.50132883]
[1730489915679,43.60811123,166.72,166.67,15.33455606]
[1730489915891,13.83322723,166.71,166.67,1.50132883]
[1730489916076,13.83322723,166.7,166.67,1.50132883]
[1730489916263,13.83322723,166.7,166.66,7.75249338]
[1730489916264,5.9991,166.69,166.66,7.75249338]
[1730489918079,19.83232723,166.69,166.66,1.50132883]
[1730489918286,19.83232723,166.69,166.63,19.83412723]
[1730489918576,19.83232723,166.69,166.64,1.50173562]
[1730489919160,37.61011123,166.68,166.64,1.50173562]
[1730489919375,37.61011123,166.68,166.62,15.33496285]
[1730489919562,37.61011123,166.68,166.63,13.83322723]
[1730489919885,5.9991,166.69,166.66,13.83322723]
[1730489920184,23.776884,166.68,166.64,13.83322723]
[1730489921465,5.9998,166.67,166.64,13.83322723]
[1730489923086,5.9998,166.67,166.63,15.33496285]
[1730489923464,5.9998,166.67,166.64,13.83322723]
[1730489924470,5.9998,166.67,166.64,8.86036677]
[1730489925890,5.9998,166.67,166.63,1.5018129]
[1730489925891,14.86016677,166.67,166.63,1.5018129]
[1730489926184,8.86036677,166.66,166.62,1.5018129]
[1730489926386,8.86036677,166.66,166.61,15.11542883]
[1730489926579,8.86036677,166.66,166.61,16.61724173]
[1730489927089,23.776884,166.66,166.61,22.61924173]
[1730489927295,23.776884,166.66,166.62,10.36217967]
[1730489927778,29.776684,166.67,166.62,10.36217967]
[1730489928193,29.776684,166.67,166.63,8.86036677]
[1730489928779,29.776684,166.67,166.62,10.36217967]
[1730489928967,8.86036677,166.66,166.62,1.5018129]
[1730489929784,29.777484,166.65,166.62,1.5018129]
[1730489929988,38.63785077,166.65,166.61,7.75701362]
[1730489930173,38.63785077,166.65,166.61,6.25506206]
[1730489930996,8.86036677,166.64,166.61,6.25506206]
[1730489931170,8.86036677,166.64,166.6,1.50195156]
[1730489931473,8.86036677,166.64,166.59,16.36471833]
[1730489931884,38.63785077,166.65,166.59,16.36471833]
[1730489933009,14.86146677,166.64,166.59,16.36471833]
[1730489933204,6.0011,166.64,166.6,8.86036677]
[1730489933900,14.86146677,166.64,166.59,16.3648054]
[1730489934195,6.0011,166.64,166.6,8.86036677]
[1730489935898,23.776884,166.63,166.59,1.50203863]
[1730489936191,8.86036677,166.62,166.59,1.50203863]
[1730489936383,8.86036677,166.62,166.57,22.16537903]
[1730489936599,8.86036677,166.62,166.58,1.50203863]
[1730489937181,14.86226677,166.62,166.58,1.50203863]
[1730489938296,14.86226677,166.62,166.57,15.11817783]
[1730489938881,29.778184,166.63,166.59,8.86036677]
[1730489939203,38.63855077,166.63,166.58,8.86036677]
[1730489939500,38.63855077,166.63,166.58,14.86336677]
[1730489941107,38.63855077,166.63,166.58,8.86036677]
[1730489941508,8.86036677,166.62,166.57,36.13017783]
[1730489942396,14.86226677,166.62,166.58,1.50218457]
[1730489943898,14.86226677,166.62,166.57,36.13017783]
[1730489944088,32.63725077,166.61,166.58,1.50219304]
[1730489944289,8.86036677,166.6,166.56,1.50219304]
[1730489944486,8.86036677,166.6,166.55,16.36655981]
[1730489944690,23.776884,166.61,166.55,1.50219304]
[1730489944691,8.86036677,166.57,166.55,1.50219304]
[1730489944886,8.86036677,166.57,166.52,16.36775981]
[1730489945111,8.86036677,166.56,166.52,7.50739304]
[1730489945800,8.86036677,166.56,166.52,6.0052]
[1730489946003,8.86036677,166.57,166.52,7.50773128]
[1730489946797,32.63725077,166.56,166.52,1.50253128]
[1730489946997,8.86036677,166.55,166.51,16.51603128]
[1730489947404,8.86036677,166.55,166.51,1.50253128]
[1730489947602,8.86036677,166.53,166.51,1.50253128]
[1730489947805,32.63725077,166.52,166.51,1.50253128]
[1730489948193,38.64245077,166.52,166.51,1.50253128]
[1730489949013,23.776884,166.51,166.49,1.50253128]
[1730489949215,32.63725077,166.5,166.49,1.50253128]
[1730489949832,32.63725077,166.5,166.45,29.88686677]
[1730489950718,8.86036677,166.49,166.45,21.0265]
[1730489952016,8.86036677,166.48,166.45,15.0191]
[1730489952229,8.86036677,166.47,166.43,12.26730358]
[1730489952527,45.425684,166.5,166.41,16.06717885]
[1730489952528,38.64485077,166.46,166.41,29.89176677]
[1730489953105,8.86036677,166.45,166.4,8.86036677]
[1730489953304,8.86036677,166.44,166.39,15.12023094]
[1730489953504,8.86036677,166.43,166.38,8.86036677]
[1730489953906,8.86036677,166.43,166.38,15.11785284]
[1730489954305,8.86036677,166.43,166.39,6.0097]
[1730489954523,14.86856677,166.44,166.39,14.87006677]
[1730489954820,23.776884,166.47,166.43,8.86036677]
[1730489956802,23.776884,166.47,166.43,14.86876677]
[1730489960200,32.63725077,166.47,166.43,6.0084]
[1730489961120,23.776884,166.47,166.43,14.86876677]
[1730489961930,24.50316677,166.5,166.45,8.86036677]
[1730489962109,21.6488,166.5,166.46,8.86036677]
[1730489962312,23.776884,166.49,166.46,8.86036677]
[1730489962913,23.776884,166.49,166.45,8.86036677]
[1730489963127,23.776884,166.49,166.45,14.86806677]
[1730489963710,23.776884,166.47,166.43,21.0297]
[1730489964036,32.63725077,166.47,166.43,21.0297]
[1730489964424,8.86036677,166.45,166.4,23.88406677]
[1730489964733,8.86036677,166.45,166.4,21.0332]
[1730489964916,23.776884,166.44,166.4,21.0332]
[1730489966210,23.776884,166.44,166.41,8.86036677]
[1730489966425,23.776884,166.44,166.41,13.88248851]
[1730489968448,35.54178851,166.47,166.41,34.91468851]
[1730489968738,23.776884,166.44,166.39,19.89208851]
[1730489969114,37.65937251,166.44,166.39,6.0096]
[1730489969433,13.88248851,166.43,166.38,41.15409344]
[1730489969731,36.677,166.47,166.38,41.15409344]
[1730489969732,23.776884,166.41,166.38,15.0253]
[1730489969928,29.786084,166.41,166.38,15.0253]
[1730489970316,23.776884,166.41,166.38,15.0253]
[1730489972015,23.776884,166.41,166.38,21.0356]
[1730489972920,23.776884,166.41,166.38,28.90778851]
[1730489977739,23.776884,166.41,166.38,15.0253]
[1730489977918,37.65937251,166.41,166.37,6.0104]
[1730489978120,13.88248851,166.39,166.35,21.25781415]
[1730489978332,13.88248851,166.38,166.33,19.89448851]
[1730489978645,13.88248851,166.37,166.33,6.012]
[1730489978933,13.88248851,166.38,166.33,7.51623277]
[1730489979333,19.89298851,166.38,166.33,7.51623277]
[1730489979532,19.89298851,166.38,166.33,36.42902128]
[1730489979733,6.0105,166.38,166.33,34.92478851]
[1730489980217,6.0105,166.38,166.34,1.50424625]
[1730489980414,6.0105,166.38,166.34,7.51594625]
[1730489980619,37.65937251,166.35,166.3,21.0457]
[1730489981042,23.776884,166.35,166.3,34.92818851]
[1730489982039,19.89338851,166.37,166.31,13.88248851]
[1730489982219,23.776884,166.36,166.31,13.88248851]
[1730489983124,23.776884,166.38,166.33,13.88248851]
[1730489983431,21.6038,166.4,166.36,13.88248851]
[1730489983636,13.88248851,166.39,166.33,13.88248851]
[1730489984140,13.88248851,166.39,166.33,15.38696647]
[1730489984643,13.88248851,166.38,166.33,1.50447796]
[1730489984854,23.776884,166.36,166.32,21.0437]
[1730489985146,37.65937251,166.36,166.32,21.0437]
[1730489985842,23.776884,166.36,166.33,1.50448729]
[1730489986022,13.88248851,166.39,166.34,13.88248851]
[1730489986226,23.776884,166.38,166.35,13.88248851]
[1730489986427,13.88248851,166.37,166.33,15.0303]
[1730489986754,13.88248851,166.37,166.33,16.53474875]
[1730489987748,23.776884,166.36,166.33,16.53474875]
[1730489989348,23.776884,166.36,166.34,1.50444875]
[1730489990227,23.776884,166.36,166.33,16.53474875]
[1730489990546,23.776884,166.36,166.34,1.50444875]
[1730489990746,23.776884,166.36,166.35,1.50444875]
[1730489990948,23.776884,166.36,166.34,1.50444875]
[1730489991138,23.776884,166.36,166.35,1.50444875]
[1730489992031,21.6037,166.4,166.35,15.38693726]
[1730489992236,304.825,166.42,166.37,13.88248851]
[1730489992448,6.0088,166.42,166.38,1.50444875]
[1730489992659,6.0088,166.42,166.37,13.88248851]
[1730489992956,6.0088,166.42,166.38,1.50421308]
[1730489993127,6.0088,166.42,166.39,1.50421308]
[1730489993323,19.89108851,166.43,166.4,1.50421308]
[1730489993530,19.89108851,166.43,166.41,1.50421308]
[1730489993730,19.89108851,166.43,166.42,1.50421308]
[1730489994043,19.89108851,166.43,166.4,1.50422148]
[1730489994232,6.0071,166.47,166.42,13.88248851]
[1730489994631,19.88958851,166.47,166.42,13.88248851]
[1730489995130,19.88958851,166.47,166.43,1.50404562]
[1730489995331,19.88958851,166.47,166.42,19.89128851]
[1730489995731,13.88248851,166.44,166.39,28.90738851]
[1730489995931,13.88248851,166.44,166.4,6.0096]
[1730489996130,23.776884,166.46,166.41,13.88248851]
[1730489996329,23.776884,166.46,166.42,15.38653949]
[1730489996547,23.776884,166.46,166.42,13.88248851]
[1730489997052,23.776884,166.46,166.41,13.88248851]
[1730489997253,37.65937251,166.46,166.42,1.50403165]
[1730489997463,37.65937251,166.46,166.41,19.89148851]
[1730489997754,23.776884,166.46,166.42,1.50403202]
[1730489997956,23.776884,166.46,166.41,34.91458851]
[1730489998254,29.784284,166.46,166.42,1.50402454]
[1730489998553,29.784284,166.46,166.43,1.50402454]
[1730489998732,37.65937251,166.44,166.4,1.50397692]
[1730489998933,13.88248851,166.42,166.41,1.50397692]
[1730489999142,13.88248851,166.42,166.39,1.50415405]
[1730489999458,13.88248851,166.42,166.4,1.50415405]
[1730489999459,19.89158851,166.42,166.4,1.50415405]
[1730489999643,19.89158851,166.42,166.38,15.0254]
[1730489999947,13.88248851,166.42,166.39,1.50425211]
[1730490000157,19.89138851,166.42,166.4,1.50425211]
[1730490000359,19.89138851,166.42,166.39,1.50425211]
[1730490000650,6.0089,166.42,166.38,21.0357]
[1730490000855,6.0089,166.42,166.39,1.5042389]
[1730490001027,6.0089,166.42,166.4,1.5042389]
[1730490001232,6.0089,166.42,166.39,1.5042389]